fUSD/lending_fUSD_20251023
["ID","MTS","AMOUNT","RATE_DAILY","PERIOD"]
[392140530,1761206434698,-26988.04,0.00045,14]
[392140531,1761206434724,-250.0,0.00045,14]
[392140532,1761206434749,-105586.52493298,0.00045,120]
[392140533,1761206434775,-1000000.0,0.00045,120]
[392140534,1761206434878,5000.0,0.000448,120]
[392140536,1761206441310,-500.0,0.00045,32]
[392140537,1761206441477,-577.69,0.00045048,120]
[392140538,1761206441536,-9369.24,0.00045049,120]
[392140539,1761206441595,-9369.24,0.00045049,120]
[392140540,1761206441653,-9369.24,0.00045049,120]
[392140541,1761206441711,-9369.24,0.00045049,120]
[392140542,1761206441764,-9369.24,0.00045049,120]
[392140543,1761206441819,-832.98,0.00045049,120]
[392140544,1761206441872,-832.98,0.00045049,120]
[392140545,1761206441930,-832.98,0.00045049,120]
[392140546,1761206441988,-832.98,0.00045049,120]
[392140547,1761206442044,-577.69,0.00045049,120]
[392140548,1761206442099,-577.69,0.00045049,120]
[392140549,1761206442152,-577.69,0.00045049,120]
[392140550,1761206442210,-577.69,0.00045049,120]
[392140551,1761206442267,-1000000.0,0.0004505,120]
[392140552,1761206442321,-500.0,0.0004505,120]
[392140553,1761206442376,-500.0,0.0004505,120]
[392140554,1761206442430,-500.0,0.0004505,120]
[392140555,1761206442487,-500.0,0.0004505,120]
[392140556,1761206442544,-286.0,0.00045144,30]
[392140557,1761206442600,-467.31429304,0.00045144,30]
[392140558,1761206442654,-500.0,0.00045378,120]
[392140559,1761206442712,-200.0,0.00045378,120]
[392140560,1761206442767,-9369.24,0.00045399,120]
[392140561,1761206442820,-9369.24,0.00045399,120]
[392140562,1761206442875,-9369.24,0.00045399,120]
[392140563,1761206442929,-9369.24,0.00045399,120]
[392140564,1761206442982,-9369.24,0.00045399,120]
[392140565,1761206443034,-9369.38880002,0.00045399,120]
[392140566,1761206443085,-832.98,0.00045399,120]
[392140567,1761206443136,-832.98,0.00045399,120]
[392140568,1761206443188,-832.98,0.00045399,120]
[392140569,1761206443240,-832.98,0.00045399,120]
[392140570,1761206443298,-832.98,0.00045399,120]
[392140571,1761206443351,-832.98,0.00045399,120]
[392140572,1761206443404,-833.19478398,0.00045399,120]
[392140573,1761206443458,-577.69,0.00045399,120]
[392140574,1761206443514,-577.69,0.00045399,120]
[392140575,1761206443571,-577.69,0.00045399,120]
[392140576,1761206443623,-577.69,0.00045399,120]
[392140577,1761206443678,-577.69,0.00045399,120]
[392140578,1761206443729,-577.70425178,0.00045399,120]
[392140579,1761206443780,-990704.08826434,0.000454,120]
[392140580,1761206443830,-500.0,0.000454,120]
[392140581,1761206443881,-500.0,0.000454,120]
[392140582,1761206443931,-500.0,0.000454,120]
[392140583,1761206443982,-500.0,0.000454,120]
[392140584,1761206444039,-526.02370109,0.000454,120]
[392140585,1761206444093,-1000000.0,0.000455,120]
[392140586,1761206444148,-500.0,0.000455,120]
[392140587,1761206444206,-500.0,0.000455,120]
[392140588,1761206444259,-500.0,0.000455,120]
[392140589,1761206444313,-500.0,0.000455,120]
[392140590,1761206444368,-665.32981656,0.00045517,120]
[392140591,1761206444422,-286.0,0.00045595,30]
[392140592,1761206444478,-881285.85608919,0.0004565,120]
[392140593,1761206448903,-481.28905422,0.00045049,120]
[392140594,1761206448955,-151.0,0.000454,120]
[392140595,1761206449007,-151.0,0.000454,120]
[392140596,1761206449066,-151.0,0.000455,120]
[392140597,1761206449119,-118714.14391081,0.0004565,120]
[392140598,1761206449169,-500.0,0.0004565,120]
[392140599,1761206449224,-500.0,0.0004565,120]
[392140600,1761206449272,-500.0,0.0004565,120]
[392140601,1761206449320,-500.0,0.0004565,120]
[392140602,1761206449371,-151.0,0.0004565,120]
[392140603,1761206449421,-526.02370109,0.000459,120]
[392140604,1761206449470,-8875.58070786,0.00046,120]
[392140605,1761206449519,-1000000.0,0.00046,120]
[392140606,1761206449569,-1000000.0,0.00046,120]
[392140607,1761206449619,-1000000.0,0.00046,120]
[392140608,1761206449673,-868798.96262602,0.00046,120]
[392140609,1761206455153,-350.37948184,0.00045048,120]
[392140610,1761206455211,-131201.03737398,0.00046,120]
[392140611,1761206455267,-492.18,0.00046,120]
[392140612,1761206455320,-168.70925402,0.00046,120]
[392140613,1761206455372,-331.94982213,0.00046,120]
[392140614,1761206455423,-531.53563957,0.00046,30]
[392140615,1761206455475,-64545.76374648,0.00046,30]
[392140616,1761206455530,-1000000.0,0.00046,120]
[392140617,1761206455582,-500.0,0.00046,120]
[392140618,1761206455632,-500.0,0.00046,120]
[392140619,1761206455687,-500.0,0.00046,120]
[392140620,1761206455743,-500.0,0.00046,120]
[392140621,1761206455798,-151.0,0.00046,120]
[392140622,1761206455850,-151.0,0.00046,120]
[392140623,1761206455900,-286.0,0.00046047,30]
[392140624,1761206455950,-182.0,0.000463,120]
[392140625,1761206456003,-286.0,0.00046498,30]
[392140626,1761206456053,-8268.65,0.000465,30]
[392140627,1761206456104,-228.35,0.000466,30]
[392140628,1761206456159,-1000000.0,0.00047,120]
[392140629,1761206456211,-1000000.0,0.00047,120]
[392140630,1761206456263,-790825.44468198,0.00047,120]
[392140631,1761206462082,-155555.0,0.0004495,120]
[392140632,1761206462141,-209174.55531802,0.00047,120]
[392140633,1761206462196,-2079.98751169,0.00047,120]
[392140634,1761206462248,-360.82662685,0.00047999,120]
[392140635,1761206462302,-439.41826678,0.00047999,120]
[392140636,1761206462358,-469.54686795,0.00047999,120]
[392140637,1761206462408,-500.0,0.00047999,120]
[392140638,1761206462464,-623.00779319,0.00047999,120]
[392140639,1761206462525,-1597552.96054683,0.00048,120]
[392140640,1761206462587,-918.0,0.00048,120]
[392140641,1761206462648,-1091.0,0.00048,30]
[392140642,1761206462704,-1091.0,0.00048,30]
[392140643,1761206462762,-500000.0,0.00048,120]
[392140644,1761206462816,-2325.75,0.00048,120]
[392140645,1761206462869,-168.70925402,0.00048,120]
[392140646,1761206462927,-331.94982213,0.00048,120]
[392140647,1761206462985,-64545.76374648,0.00048,30]
[392140648,1761206463041,-1091.0,0.00048,30]
[392140649,1761206463099,-1095.97753724,0.00048,30]
[392140650,1761206463155,-1920.0,0.000484,120]
[392140651,1761206463212,-402.33430296,0.000488,120]
[392140652,1761206463269,-673.94089704,0.000488,120]
[392140653,1761206463324,-13711.40662419,0.000488,120]
[392140654,1761206463379,-9645.65235457,0.000488,120]
[392140655,1761206463437,-664.40372179,0.0004888,120]
[392140656,1761206463495,-8268.65,0.000489,30]
[392140657,1761206463549,-253231.16249498,0.0004892,120]
[392140658,1761206463604,-1000.0,0.00048999,120]
[392140659,1761206463658,-1000.0,0.00049,120]
[392140660,1761206463711,-228.77760116,0.00049,120]
[392140661,1761206463766,-784.47472014,0.00049,30]
[392140662,1761206463817,-2333.69837135,0.00049,120]
[392140663,1761206463869,-3400.0,0.00049,120]
[392140664,1761206463924,-2500.0,0.0004944,62]
[392140665,1761206463980,-500.0,0.0004944,120]
[392140666,1761206464033,-500.0,0.0004944,120]
[392140667,1761206464086,-500.0,0.0004944,120]
[392140668,1761206464139,-500.0,0.0004944,120]
[392140669,1761206464194,-500.0,0.0004944,120]
[392140670,1761206464249,-500.0,0.0004944,120]
[392140671,1761206464309,-500.0,0.0004944,120]
[392140672,1761206464367,-500.0,0.0004944,120]
[392140673,1761206464427,-500.0,0.0004944,120]
[392140674,1761206464491,-500.0,0.0004944,120]
[392140675,1761206464559,-500.0,0.0004944,120]
[392140676,1761206464621,-500.0,0.0004944,120]
[392140677,1761206464682,-500.0,0.0004944,120]
[392140678,1761206464742,-500.0,0.0004944,120]
[392140679,1761206464801,-500.0,0.0004944,120]
[392140680,1761206464859,-500.0,0.0004944,120]
[392140681,1761206464918,-500.0,0.0004944,120]
[392140682,1761206464981,-500.0,0.0004944,120]
[392140683,1761206465038,-500.0,0.0004944,120]
[392140684,1761206465099,-500.0,0.0004944,120]
[392140685,1761206465155,-500.0,0.0004944,120]
[392140686,1761206465209,-500.0,0.0004944,120]
[392140687,1761206465265,-500.0,0.0004944,120]
[392140688,1761206465318,-500.0,0.0004944,120]
[392140689,1761206465371,-500.0,0.0004944,120]
[392140690,1761206465423,-500.0,0.0004944,120]
[392140691,1761206465477,-500.0,0.0004944,120]
[392140692,1761206465532,-500.0,0.0004944,120]
[392140693,1761206465591,-500.0,0.0004944,120]
[392140694,1761206465646,-500.0,0.0004944,120]
[392140695,1761206465699,-500.0,0.0004944,120]
[392140696,1761206465754,-653.0,0.0004944,120]
[392140697,1761206465812,-2350.0,0.000495,120]
[392140698,1761206465863,-2500.0,0.0004986,55]
[392140699,1761206465915,-439.97985256,0.000499,35]
[392140700,1761206465968,-233.10953678,0.000499,120]
[392140701,1761206466020,-233.10953671,0.000499,120]
[392140702,1761206466072,-233.10953671,0.000499,120]
[392140703,1761206466125,-233.10953671,0.000499,120]
[392140704,1761206466179,-233.10953671,0.000499,120]
[392140705,1761206466231,-233.10953671,0.000499,120]
[392140706,1761206466284,-233.10953671,0.000499,120]
[392140707,1761206466336,-233.10953671,0.000499,120]
[392140708,1761206466388,-233.10953671,0.000499,120]
[392140709,1761206466440,-233.10953671,0.000499,120]
[392140710,1761206466492,-666.97,0.00049924,120]
[392140711,1761206466543,-200.71227513,0.00049992,60]
[392140712,1761206466595,-1000.0,0.00049999,120]
[392140713,1761206466647,-50000.0,0.0005,46]
[392140714,1761206466698,-50000.0,0.0005,51]
[392140715,1761206466753,-50000.0,0.0005,48]
[392140716,1761206466803,-200.0,0.0005,120]
[392140717,1761206466854,-500.0,0.0005,120]
[392140718,1761206466906,-655.9924381,0.0005,120]
[392140719,1761206466957,-1079.47889486,0.0005,120]
[392140720,1761206467009,-224.86717536,0.0005,120]
[392140721,1761206467063,-164.9538319,0.0005,120]
[392140722,1761206467115,-500.0,0.0005,30]
[392140723,1761206467172,-705.46954245,0.0005,120]
[392140724,1761206467228,-185.79277109,0.0005,60]
[392140725,1761206467285,-1000.0,0.0005,120]
[392140726,1761206467340,-310.0,0.0005,120]
[392140727,1761206467533,-200.0,0.0005,120]
[392140728,1761206467587,-2500.0,0.0005,30]
[392140729,1761206467640,-20122.9,0.0005,120]
[392140730,1761206467692,-500.0,0.0005,90]
[392140731,1761206467743,-10259.79135847,0.0005,120]
[392140732,1761206467794,-243.0,0.0005,120]
[392140733,1761206467846,-19241.18,0.0005,120]
[392140734,1761206467900,-2633.19,0.0005,120]
[392140735,1761206467952,-5000.0,0.0005,120]
[392140736,1761206468005,-60368.61,0.0005,120]
[392140737,1761206468055,-1000.0,0.0005,120]
[392140738,1761206468109,-4024.58,0.0005,120]
[392140739,1761206468165,-19000.0,0.0005,30]
[392140740,1761206468223,-228.35,0.000501,30]
[392140741,1761206468281,-2545.0,0.00050321,120]
[392140742,1761206468336,-1091.0,0.000504,30]
[392140743,1761206468393,-500.0,0.00050479,34]
[392140744,1761206468452,-251.73620285,0.00051,120]
[392140745,1761206468506,-1000.0,0.00051,120]
[392140746,1761206468561,-337.41850803,0.00051,120]
[392140747,1761206468618,-663.89964426,0.00051,120]
[392140748,1761206468678,-500.0,0.00051,120]
[392140749,1761206468731,-500.0,0.00051,120]
[392140750,1761206468784,-500.0,0.00051,120]
[392140751,1761206468836,-500.0,0.00051,120]
[392140752,1761206468888,-500.0,0.00051,120]
[392140753,1761206468941,-500.0,0.00051,120]
[392140754,1761206468996,-500.0,0.00051,120]
[392140755,1761206469047,-500.0,0.00051,120]
[392140756,1761206469100,-500.0,0.00051,120]
[392140757,1761206469153,-500.0,0.00051,120]
[392140758,1761206469204,-790.0,0.00051,120]
[392140759,1761206469253,-942.0,0.00051,30]
[392140760,1761206469303,-500.0,0.00051,120]
[392140761,1761206469355,-500.0,0.00051,120]
[392140762,1761206469410,-500.0,0.00051,120]
[392140763,1761206469471,-500.0,0.00051,120]
[392140764,1761206469526,-500.0,0.00051,120]
[392140765,1761206469581,-500.0,0.00051,120]
[392140766,1761206469635,-500.0,0.00051,120]
[392140767,1761206469690,-500.0,0.00051,120]
[392140768,1761206469748,-500.0,0.00051,120]
[392140769,1761206469802,-500.0,0.00051,120]
[392140770,1761206469856,-500.0,0.00051,120]
[392140771,1761206469912,-500.0,0.00051,120]
[392140772,1761206469966,-500.0,0.00051,120]
[392140773,1761206470021,-500.0,0.00051,120]
[392140774,1761206470075,-500.0,0.00051,120]
[392140775,1761206470127,-500.0,0.00051,120]
[392140776,1761206470180,-500.0,0.00051,120]
[392140777,1761206470241,-500.0,0.00051,120]
[392140778,1761206470295,-500.0,0.00051,120]
[392140779,1761206470349,-500.0,0.00051,120]
[392140780,1761206470407,-500.0,0.00051,120]
[392140781,1761206470465,-500.0,0.00051,120]
[392140782,1761206470519,-500.0,0.00051,120]
[392140783,1761206470574,-500.0,0.00051,120]
[392140784,1761206470630,-500.0,0.00051,120]
[392140785,1761206470684,-500.0,0.00051,120]
[392140786,1761206470750,-500.0,0.00051,120]
[392140787,1761206470810,-500.0,0.00051,120]
[392140788,1761206470863,-500.0,0.00051,120]
[392140789,1761206470916,-500.0,0.00051,120]
[392140790,1761206470971,-500.0,0.00051,120]
[392140791,1761206471024,-500.0,0.00051,120]
[392140792,1761206471077,-500.0,0.00051,120]
[392140793,1761206471129,-500.0,0.00051,120]
[392140794,1761206471180,-500.0,0.00051,120]
[392140795,1761206471235,-500.0,0.00051,120]
[392140796,1761206471303,-500.0,0.00051,120]
[392140797,1761206471362,-500.0,0.00051,120]
[392140798,1761206471421,-500.0,0.00051,120]
[392140799,1761206471484,-500.0,0.00051,120]
[392140800,1761206471550,-500.0,0.00051,120]
[392140801,1761206471617,-500.0,0.00051,120]
[392140802,1761206471681,-500.0,0.00051,120]
[392140803,1761206471742,-500.0,0.00051,120]
[392140804,1761206471798,-500.0,0.00051,120]
[392140805,1761206471853,-500.0,0.00051,120]
[392140806,1761206471908,-713.0,0.00051,120]
[392140807,1761206471977,-500.0,0.00051,120]
[392140808,1761206472045,-500.0,0.00051,120]
[392140809,1761206472104,-500.0,0.00051,120]
[392140810,1761206472160,-500.0,0.00051,120]
[392140811,1761206472215,-500.0,0.00051,120]
[392140812,1761206472271,-500.0,0.00051,120]
[392140813,1761206472325,-500.0,0.00051,120]
[392140814,1761206472380,-500.0,0.00051,120]
[392140815,1761206472438,-500.0,0.00051,120]
[392140816,1761206472492,-500.0,0.00051,120]
[392140817,1761206472548,-500.0,0.00051,120]
[392140818,1761206472609,-500.0,0.00051,120]
[392140819,1761206472663,-500.0,0.00051,120]
[392140820,1761206472716,-500.0,0.00051,120]
[392140821,1761206472770,-500.0,0.00051,120]
[392140822,1761206472822,-500.0,0.00051,120]
[392140823,1761206472875,-500.0,0.00051,120]
[392140824,1761206472933,-500.0,0.00051,120]
[392140825,1761206472984,-500.0,0.00051,120]
[392140826,1761206473042,-500.0,0.00051,120]
[392140827,1761206473103,-500.0,0.00051,120]
[392140828,1761206473157,-835.0,0.00051,120]
[392140829,1761206473211,-1000.0,0.00051373,120]
[392140830,1761206473266,-31366.22594624,0.00051975,120]
[392140831,1761206473327,-1000.0,0.00052,120]
[392140832,1761206473524,-380.0,0.00052,120]
[392140833,1761206473580,-8268.65,0.00052,30]
[392140834,1761206473635,-1747.0,0.000527,30]
[392140835,1761206473690,-1000.0,0.00053,120]
[392140836,1761206473744,-222.0,0.00053,30]
[392140837,1761206473800,-161.93,0.0005348,120]
[392140838,1761206473851,-153117.9289046,0.0005392,120]
[392140839,1761206473904,-555549.3373243,0.0005392,120]
[392140840,1761206473958,-1000.0,0.00054,120]
[392140841,1761206474013,-31349.00558327,0.00054,120]
[392140842,1761206480042,-332.66490828,0.00044999,120]
[392140843,1761206480116,-1000000.0,0.00045,120]
[392140844,1761206480176,-1000000.0,0.00045,120]
[392140845,1761206480234,-1000000.0,0.00045,120]
[392140846,1761206480295,-332.66490828,0.00045517,120]
[392140847,1761206480354,-171.82374432,0.00048663,33]
[392140848,1761206480410,-171.82374432,0.000499,38]
[392140849,1761206480464,-24539.89441673,0.00054,120]
[392140850,1761206480518,-421.77313504,0.00054,120]
[392140851,1761206480577,-829.87455532,0.00054,120]
[392140852,1761206480631,-195.0,0.00054,120]
[392140853,1761206480686,-379.53335,0.00054,68]
[392140854,1761206480738,-2500.0,0.0005444,62]
[392140855,1761206480788,-5000.0,0.000547,120]
[392140856,1761206480837,-500.0,0.00054794,120]
[392140857,1761206480896,-500.0,0.00054794,120]
[392140858,1761206480963,-386.53840175,0.00054794,120]
[392140859,1761206494993,323.038,0.00046215,76]
[392140860,1761206497141,-228.35,0.000548,60]
[392140861,1761206497211,-666.97,0.00054906,120]
[392140862,1761206497275,-2500.0,0.0005496,63]
[392140863,1761206497334,-2231.60045379,0.00055,120]
[392140864,1761206497399,-214.52220453,0.00055,120]
[392140865,1761206497458,-1000.0,0.00055,120]
[392140866,1761206497523,-380.0,0.00055,120]
[392140867,1761206497588,-20122.9,0.00055,120]
[392140868,1761206497650,-19241.18,0.00055,120]
[392140869,1761206497707,-60368.61,0.00055,120]
[392140870,1761206497774,-4024.58,0.00055,120]
[392140871,1761206497837,-1920.0,0.000551,120]
[392140872,1761206497899,-500.0,0.000555,120]
[392140873,1761206497956,-200.0,0.000555,120]
[392140874,1761206498014,-2500.0,0.0005586,62]
[392140875,1761206498073,-379.53336,0.00056,68]
[392140876,1761206498132,-421.77313502,0.00056,120]
[392140877,1761206498195,-829.87455531,0.00056,120]
[392140878,1761206498255,-500.0,0.00056833,120]
[392140879,1761206498314,-200.0,0.00056842,120]
[392140880,1761206498373,-2500.0,0.0005686,62]
[392140881,1761206498434,-445.0,0.00056986,120]
[392140882,1761206498500,-580.0,0.00058,120]
[392140883,1761206498561,-580.0,0.00058,120]
[392140884,1761206498638,-379.53336,0.00058,68]
[392140885,1761206498698,-500.0,0.00058167,120]
[392140886,1761206498767,-200.0,0.00058183,120]
[392140887,1761206498821,-28110.68,0.00058188,120]
[392140888,1761206498877,-560.0,0.000585,120]
[392140889,1761206498935,-380.0,0.000588,120]
[392140890,1761206498999,-2500.0,0.0005896,62]
[392140891,1761206499071,-243.26,0.00059,60]
[392140892,1761206499140,-500.0,0.000595,120]
[392140893,1761206499203,-202.928899,0.00059525,120]
[392140894,1761206499262,-2500.0,0.0005963,62]
[392140895,1761206499322,-2500.0,0.0005986,62]
[392140896,1761206499386,-666.97,0.00059887,120]
[392140897,1761206499449,-1236.36777891,0.000599,120]
[392140898,1761206499509,-204.13504871,0.00059963,120]
[392140899,1761206499570,-445.0,0.00059986,120]
[392140900,1761206499630,-1000.0,0.00059999,120]
[392140901,1761206499691,-172.58690575,0.0006,120]
[392140902,1761206499754,-486.83366899,0.0006,120]
[392140903,1761206499812,-1850.0,0.0006,120]
[392140904,1761206499870,-156.75193648,0.0006,120]
[392140905,1761206499929,-1000.0,0.0006,120]
[392140906,1761206499988,-200.0,0.0006,120]
[392140907,1761206500052,-20122.9,0.0006,120]
[392140908,1761206500115,-500.0,0.0006,90]
[392140909,1761206500174,-19241.18,0.0006,120]
[392140910,1761206500230,-3300.0,0.0006,120]
[392140911,1761206500285,-912.5162603,0.0006,120]
[392140912,1761206500343,-11827.0,0.0006,60]
[392140913,1761206500400,-5000.0,0.0006,120]
[392140914,1761206500456,-60368.61,0.0006,120]
[392140915,1761206500515,-4024.58,0.0006,120]
[392140916,1761206500575,-379.53336,0.0006,68]
[392140917,1761206500641,1142.71,0.0005638,120]
[392140918,1761206500715,167.48195695,0.00059974,120]
[392140919,1761206500977,700000.0,0.00047,120]
[392140920,1761206501042,150.0,0.00059974,120]
[392140922,1761206506376,500.0,0.00059974,120]
[392140923,1761206506577,500.0,0.00059974,120]
[392140924,1761206506741,239.65356875,0.00059974,120]
[392140927,1761206550325,-151.0,0.00034845,2]
[392140928,1761206550355,-151.0,0.00035641,2]
[392140929,1761206550380,-500.0,0.00041073,30]
[392140930,1761206550405,-2549.0,0.00044321,2]
[392140931,1761206550429,-901.265,0.00044321,2]
[392140932,1761206550455,-23997.5989,0.00044889,2]
[392140933,1761206550481,-171.82374432,0.0004495,17]
[392140934,1761206550521,-765578.31235568,0.00045,120]
[392140951,1761206629260,1260.88245826,0.00036177,120]
[392140953,1761206641555,1209.88677042,0.00036177,120]
[392140955,1761206754127,-151.0,0.00036285,2]
[392140956,1761206754147,-151.0,0.0003672,2]
[392140957,1761206754168,-151.0,0.00036737,2]
[392140958,1761206754189,-500.0,0.00043835,30]
[392140959,1761206754210,-2549.0,0.00044321,2]
[392140960,1761206754232,-640.30337113,0.000449,15]
[392140961,1761206846088,-300.0,0.00040453,120]
[392140962,1761206846109,-388.67947269,0.00040813,120]
[392140963,1761206846135,-609.62641859,0.0004485,15]
[392140964,1761206846158,-458.15341444,0.000449,15]
[392140965,1761206846180,-945.87726779,0.000449,120]
[392140966,1761206850105,-500.0,0.00034879,2]
[392140967,1761206850126,-2365.2467691,0.000449,120]
[392140968,1761206853129,-216.01506471,0.000449,120]
[392141001,1761207031605,-151.0,0.00038144,2]
[392141003,1761207031614,-1245.01066307,0.00044324,120]
[392141004,1761207031743,-5418.93933693,0.00044324,120]
[392141005,1761207031754,-2369.0,0.00044588,120]
[392141006,1761207031763,-1357.4,0.0004485,2]
[392141007,1761207031773,-258.02,0.00044856,2]
[392141008,1761207031783,-1472.8608984,0.000449,120]
[392141009,1761207031793,-920.99567322,0.000449,17]
[392141010,1761207031802,-173.19310226,0.000449,15]
[392141011,1761207031811,-2080.79910479,0.000449,15]
[392141012,1761207031820,-500.0,0.00044949,120]
[392141013,1761207031829,-500.0,0.00044949,120]
[392141014,1761207031838,-500.0,0.00044949,120]
[392141015,1761207031851,-500.0,0.00044949,120]
[392141016,1761207031860,-500.0,0.00044949,120]
[392141017,1761207031869,-500.0,0.00044949,120]
[392141018,1761207031879,-500.0,0.00044949,120]
[392141019,1761207031888,-500.0,0.00044949,120]
[392141020,1761207031897,-500.0,0.00044949,120]
[392141021,1761207031906,-500.0,0.00044949,120]
[392141022,1761207031916,-500.0,0.00044949,120]
[392141023,1761207031926,-500.0,0.00044949,120]
[392141024,1761207031935,-500.0,0.00044949,120]
[392141025,1761207031945,-500.0,0.00044949,120]
[392141026,1761207031954,-500.0,0.00044949,120]
[392141027,1761207031963,-500.0,0.00044949,120]
[392141028,1761207031973,-500.0,0.00044949,120]
[392141029,1761207031982,-500.0,0.00044949,120]
[392141030,1761207031992,-500.0,0.00044949,120]
[392141031,1761207032002,-500.0,0.00044949,120]
[392141032,1761207032011,-77911.18107739,0.0004495,120]
[392141033,1761207032023,-26383.13899917,0.0004495,120]
[392141034,1761207032034,-15556.00000006,0.0004495,120]
[392141430,1761207037645,-363.98,0.0004495,120]
[392141432,1761207037656,-35340.69992338,0.0004495,120]
[392141434,1761207037666,-299.5214448,0.0004495,30]
[392141435,1761207037675,-396.97427192,0.0004498,120]
[392141436,1761207037685,-6663.95,0.00044999,120]
[392141437,1761207037695,-6663.95,0.00044999,120]
[392141438,1761207037705,-6663.95,0.00044999,120]
[392141439,1761207037715,-6663.95,0.00044999,120]
[392141440,1761207037725,-500.0,0.00044999,2]
[392141441,1761207037734,-24421.68764432,0.00045,120]
[392141442,1761207037743,-500000.0,0.00045,120]
[392141443,1761207037753,-308000.0,0.00045,120]
[392141444,1761207037763,-4024.58,0.00045,120]
[392141445,1761207037773,-500.0,0.00045,16]
[392141446,1761207037783,-500.0,0.00045,16]
[392141447,1761207037792,-500.0,0.00045,16]
[392141448,1761207037802,-500.0,0.00045,16]
[392141450,1761207037811,-500.0,0.00045,16]
[392141452,1761207037821,-500.0,0.00045,16]
[392141454,1761207037830,-500.0,0.00045,16]
[392141455,1761207037840,-500.0,0.00045,16]
[392141457,1761207037853,-500.0,0.00045,32]
[392141460,1761207037864,-6663.95,0.00045048,120]
[392141462,1761207037873,-6663.95,0.00045049,120]
[392141464,1761207037883,-6663.95,0.00045049,120]
[392141466,1761207037893,-6663.95,0.00045049,120]
[392141468,1761207037902,-6663.95,0.00045049,120]
[392141470,1761207037913,-200000.0,0.0004505,120]
[392141472,1761207037922,-389.43755962,0.00045144,30]
[392141474,1761207037932,-6663.95,0.00045399,120]
[392141476,1761207037941,-6663.95,0.00045399,120]
[392141479,1761207037951,-6663.95,0.00045399,120]
[392141480,1761207037960,-6663.95,0.00045399,120]
[392141482,1761207037969,-6663.95,0.00045499,120]
[392141484,1761207037978,-6663.95,0.00045499,120]
[392141486,1761207037987,-6663.95,0.00045499,120]
[392141488,1761207037996,-6663.95,0.00045499,120]
[392141490,1761207038005,-6663.95,0.00045499,120]
[392141492,1761207038014,-6663.95,0.00045649,120]
[392141494,1761207038023,-6663.95,0.00045649,120]
[392141496,1761207038032,-6663.95,0.00045649,120]
[392141498,1761207038041,-6663.95,0.00045649,120]
[392141500,1761207038050,-6664.05500001,0.00045649,120]
[392141502,1761207038059,-400000.0,0.00046,120]
[392141504,1761207038068,-160.99,0.00046,30]
[392141506,1761207038078,-1397.6,0.00046,14]
[392141508,1761207038087,-253.07,0.00046143,2]
[392141510,1761207038097,-168.0,0.00046184,2]
[392141512,1761207038106,-171.82374432,0.00046188,23]
[392141514,1761207038116,-168.0,0.00046215,2]